Cogmind - Beta 14 @@@ ROGUE MODE // 2024.08.09 @ 15:26:27 Player: Sgt. SmokeWeed Result: Self-destructed Performance ------------- Evolutions (1) 500 Regions Visited (5) 1000 Robots Destroyed (47) 235 Value Destroyed (853) 853 Prototype IDs (25) 500 Alien Tech Used (0) 0 Bonus (300) 300 TOTAL SCORE: 3388 Bonus ------- Aligned with FarCom 300 Cogmind --------- Core Integrity 105/400 Matter 290/300 Energy 265/265 System Corruption 0% Temperature Cool (0) Movement Treading (160) Location -9/Exiles Parts ------- > --- POWER (1) -------- Improved Ion Engine > --- PROPULSION (2) --- Light Treads Improved Treads > --- UTILITY (4) ------ Heat Sink Medium Storage Unit Hacking Suite > --- WEAPON (2) ------- Improved Light Cannon Improved Light Cannon > --- INVENTORY (10) --- Light Treads Light Treads Peak State ------------ > --- POWER ------------ Heavy Ion Engine > --- PROPULSION ------- Light Treads Light Treads > --- UTILITY ---------- Heat Sink Small Storage Unit Medium Storage Unit Hacking Suite > --- WEAPON ----------- Improved Light Cannon Improved Light Cannon > --- INVENTORY -------- Improved Ion Engine Light Treads [Rating: 15] Favorites ----------- Power Heavy Ion Engine Engine Heavy Ion Engine Propulsion Light Treads Treads Light Treads Utility Small Storage Unit Device Heat Sink Storage Small Storage Unit Hackware Hacking Suite Protection Light Armor Plating Weapon Improved Light Cannon Energy Gun Improved EM Shotgun Ballistic Gun Autogun Ballistic Cannon Improved Light Cannon Launcher Grenade Launcher Build | -11 -10 -10 -9 -9 -9 ------- Run | Yrd Mat Min Mat Min Exi Slots Evolved 2 | . . . 2 . . Power . | . . . . . . Propulsion . | . . . . . . Utility 2 | . . . 2 . . Weapon . | . . . . . . Parts Attached 28 | 6 1 . 18 2 1 Power 4 | 1 . . 2 . 1 Engine 4 | 1 . . 2 . 1 Core . | . . . . . . Reactor . | . . . . . . Propulsion 8 | 2 . . 5 1 . Treads 8 | 2 . . 5 1 . Leg . | . . . . . . Wheel . | . . . . . . Hover . | . . . . . . Flight . | . . . . . . Utility 5 | 1 . . 3 1 . Device 1 | . . . 1 . . Storage 2 | 1 . . . 1 . Processor . | . . . . . . Hackware 1 | . . . 1 . . Protection 1 | . . . 1 . . Artifact . | . . . . . . Weapon 11 | 2 1 . 8 . . Energy Gun 4 | 1 . . 3 . . Energy Cannon . | . . . . . . Ballistic Gun 4 | 1 . . 3 . . Ballistic Cannon 2 | . . . 2 . . Launcher 1 | . 1 . . . . Special Weapon . | . . . . . . Impact Weapon . | . . . . . . Slashing Weapon . | . . . . . . Piercing Weapon . | . . . . . . Special Melee Weapon . | . . . . . . Unidentified Prototypes 2 | . . . 2 . . Parts Lost 10 | . . 3 6 1 . Power 3 | . . 1 1 1 . Propulsion 2 | . . . 2 . . Utility 1 | . . . 1 . . Weapon 4 | . . 2 2 . . Highest Loss Streak 4 | . . 3 4 1 . To Critical Strikes . | . . . . . . Average Slot Usage (%) 72 | . 85 45 63 80 87 Engine 6 | . 14 . 9 3 10 Treads 23 | . 28 28 20 22 22 Device 5 | . . . 1 11 11 Storage 11 | . 14 14 11 11 11 Hackware 5 | . . . . 11 11 Energy Gun 2 | . 2 . 8 . . Ballistic Gun 4 | . 14 1 7 . . Ballistic Cannon 10 | . . . 1 22 22 Launcher 1 | . 11 1 . . . Peak Build Rating 15 | 6 6 6 14 15 14 Average Rating 9 | 4 6 3 9 12 13 On Entrance 6 | . 6 6 3 14 12 Naked Turns . | . . . . . . Heaviest Build 27 | 13 15 15 22 27 26 Greatest Support 43 | 40 40 40 40 43 43 Greatest Overweight (x) 1 | 1 . . 1 . . Average Overweight (x) . | . . . . . . Largest Inventory Capacity 10 | 8 8 8 8 10 10 Average Capacity 8 | 7 8 8 8 9 10 Most Carried 3 | . . . 2 3 3 Average Carried 1 | . . . . 2 2 Final Capacity 10 | 8 8 8 8 10 10 Final Carried 3 | . . . 2 3 2 Class Distribution -------------------- 62% | Mutant 37% | Scavenger-Mutant Dominant Class ---------------- Mutant | -10/Materials Mutant | -10/Mines Mutant | -9/Materials Scavenger-Mutant | -9/Mines Scavenger-Mutant | -9/Exiles Resources | -11 -10 -10 -9 -9 -9 ----------- Run | Yrd Mat Min Mat Min Exi Matter Collected 1156 | 206 50 42 552 306 . Remotely . | . . . . . . Salvage Created 1201 | . 123 20 945 113 . Parts 90 | . 15 . 56 19 . Haulers Intercepted 5 | . 1 . 4 . . Recyclers Shooed 2 | . 1 . 1 . . Parts Field Recycled . | . . . . . . Retrieved Matter . | . . . . . . Parts Self-Destructed . | . . . . . . Prevented . | . . . . . . Kills | -11 -10 -10 -9 -9 -9 ------- Run | Yrd Mat Min Mat Min Exi Combat Hostiles Destroyed 34 | . 8 1 14 11 . Guns 19 | . 5 . 14 . . Cannons 11 | . . . . 11 . AOE 4 | . 3 1 . . . Classes Destroyed 8 | . 4 . 3 1 . Builder 1 | . . . . 1 . Hauler 5 | . 1 . 4 . . Recycler 2 | . . . 2 . . Operator 1 | . . . 1 . . Watcher 4 | . 2 . 2 . . Swarmer 20 | . 6 . 4 10 . Grunt 10 | . 2 1 6 1 . Sentry 4 | . . . 4 . . Best Kill Streak 5 | . 5 1 3 4 . Combat Bots Only 4 | . 3 1 2 4 . Max Kills in Single Turn 1 | . 1 1 1 1 . Gunslinging . | . . . . . . Exploded 1 | . 1 1 . . . Melee . | . . . . . . Uniques/NPCs Destroyed . | . . . . . . Combat | -11 -10 -10 -9 -9 -9 -------- Run | Yrd Mat Min Mat Min Exi Hostile Shots Fired 282 | . 74 23 126 59 . Missed 91 | . 28 9 30 24 . Damage Taken 2258 | . 396 215 1258 389 . Core 392 | . 73 24 255 40 . Absorbed by Shields . | . . . . . . Core Remaining (%) 80 | 100 . 61 . . . Volleys Fired 139 | . 30 11 74 24 . Largest 2 | . 2 2 2 2 . Hottest 90 | . 60 50 90 78 . Shots Fired 222 | . 49 15 110 48 . Gun 153 | . 38 9 106 . . Cannon 52 | . . . 4 48 . Launcher 17 | . 11 6 . . . Special . | . . . . . . Kinetic 150 | . 30 9 63 48 . Thermal 28 | . 8 . 20 . . Explosive 17 | . 11 6 . . . Electromagnetic 27 | . . . 27 . . Robot Hit Streak 14 | . 7 3 14 5 . Robot Miss Streak 4 | . 4 3 4 4 . Penetration Max . | . . . . . . Secondary Targets 4 | . 2 . 2 . . Max Gunslinging Chain 1 | . 1 . 1 . . Shots Hit Robots 126 | . 23 8 73 22 . Core Hits 70 | . 17 4 37 12 . Critical Kills . | . . . . . . Critical Parts Destroyed 1 | . . . 1 . . Critical Strikes 1 | . . . 1 . . Destroy 1 | . . . 1 . . Melee Attacks . | . . . . . . Impact . | . . . . . . Slashing . | . . . . . . Piercing . | . . . . . . Sneak Attacks . | . . . . . . Combat Hostiles . | . . . . . . Follow-up Attacks . | . . . . . . Damage Inflicted 2849 | . 758 406 1144 541 . Guns 1332 | . 214 44 1074 . . Cannons 560 | . . . 41 519 . Explosions 920 | . 537 359 24 . . Melee . | . . . . . . Ramming 37 | . 7 3 5 22 . Kinetic 1355 | . 172 44 620 519 . Thermal 219 | . 42 . 177 . . Explosive 896 | . 537 359 . . . Electromagnetic 342 | . . . 342 . . Impact . | . . . . . . Slashing . | . . . . . . Piercing . | . . . . . . Highest Corruption . | . . . . . . Average Corruption . | . . . . . . Corruption Purged . | . . . . . . Corruption Blocked . | . . . . . . Overload Shots . | . . . . . . Overflow Damage 40 | . 5 4 26 5 . Projectiles 5 | . . . . 5 . Explosions 35 | . 5 4 26 . . Melee . | . . . . . . Knockbacks 3 | . . . . 3 . Impact . | . . . . . . Kinetic 3 | . . . . 3 . Secondary . | . . . . . . Self-Inflicted Damage 75 | . . 48 27 . . Shots 5 | . . 4 1 . . Rammed 9 | . 2 1 1 5 . Targets Rammed 10 | . 2 1 1 6 . Kicked . | . . . . . . Crushed 1 | . . . . 1 . Highest Temperature 375 | . 6 6 375 . . Average Temperature 76 | . 3 6 79 . . Received Heat Transfer 693 | . 30 93 540 30 . Effects 1 | . . . 1 . . Energy Bleed 1 | . . . 1 . . Siege Activations . | . . . . . . Robots Corrupted . | . . . . . . Combat Hostiles . | . . . . . . Parts Fried . | . . . . . . Impact Corruptions . | . . . . . . Robots Melted . | . . . . . . Combat Hostiles . | . . . . . . Parts Melted . | . . . . . . Heat Transferred 500 | . 100 . 400 . . Parts Sabotaged . | . . . . . . Parts Stolen . | . . . . . . Parts Stripped . | . . . . . . Power Chain Reactions 1 | . . . 1 . . Alert | -11 -10 -10 -9 -9 -9 ------- Run | Yrd Mat Min Mat Min Exi Peak Influence 335 | . 261 148 335 232 . Initial 101 | . . 101 57 81 . Average 133 | . 116 144 194 98 . Maximum Alert Level 1 | . 1 . 1 1 . Low Security (%) 73 | 100 94 100 44 77 . Level 1 26 | . 5 . 55 22 . Level 2 . | . . . . . . Level 3 . | . . . . . . Level 4 . | . . . . . . Level 5 . | . . . . . . High Security . | . . . . . . Max Security . | . . . . . . Squads Dispatched 3 | . . . 3 . . Investigation 1 | . . . 1 . . Extermination . | . . . . . . Reinforcement 2 | . . . 2 . . Assault . | . . . . . . Garrison . | . . . . . . Intercept . | . . . . . . Searches Triggered . | . . . . . . Construction Impeded . | . . . . . . Haulers Reinforced . | . . . . . . Active Scanning Responses . | . . . . . . Cargo Convoy Interrupts . | . . . . . . Stealth | -11 -10 -10 -9 -9 -9 --------- Run | Yrd Mat Min Mat Min Exi Distress Signals 1 | . 1 . . . . Communications Jammed . | . . . . . . Distress Signals . | . . . . . . Times Spotted 54 | . 13 2 25 14 . Peak Tracking Total 4 | . 4 2 4 4 . Tactical Retreats 4 | . . 1 2 1 . Traps | -11 -10 -10 -9 -9 -9 ------- Run | Yrd Mat Min Mat Min Exi Traps Triggered 1 | . . . 1 . . Indirectly . | . . . . . . Trap Hack Attempts . | . . . . . . Triggered . | . . . . . . Disarmed . | . . . . . . Reprogrammed . | . . . . . . Reused . | . . . . . . Traps Extracted . | . . . . . . Installed . | . . . . . . Triggered . | . . . . . . Machines | -11 -10 -10 -9 -9 -9 ---------- Run | Yrd Mat Min Mat Min Exi Machines Disabled 1 | . 1 . . . . Max in Single Turn 1 | . 1 . . . . Machines Repaired . | . . . . . . Machines Dismantled . | . . . . . . Machines Sabotaged . | . . . . . . Overloaded Fab Kills . | . . . . . . Hacking | -11 -10 -10 -9 -9 -9 --------- Run | Yrd Mat Min Mat Min Exi Machines Accessed 4 | . 1 . 2 . 1 Terminals 3 | . 1 . 2 . . Fabricators . | . . . . . . Repair Stations . | . . . . . . Recycling Units . | . . . . . . Scanalyzers . | . . . . . . Garrison Access . | . . . . . . Total Hacks 8 | . 2 . 5 . 1 Successful 3 | . 1 . 1 . 1 Failed 5 | . 1 . 4 . . Catastrophic 2 | . . . 2 . . Database Lockouts . | . . . . . . Manual 8 | . 2 . 5 . 1 Terminals 7 | . 2 . 5 . . Fabricators . | . . . . . . Repair Stations . | . . . . . . Recycling Units . | . . . . . . Scanalyzers . | . . . . . . Garrison Access . | . . . . . . Terminal Hacks 3 | . 1 . 1 . 1 Branch Access Points 2 | . 1 . 1 . . Derelict Proto ID Bank 1 | . . . . . 1 Fabricator Hacks . | . . . . . . Repair Station Hacks . | . . . . . . Recycling Unit Hacks . | . . . . . . Scanalyzer . | . . . . . . Garrison Access Hacks . | . . . . . . Unauthorized Hacks . | . . . . . . Terminals . | . . . . . . Fabricators . | . . . . . . Repair Stations . | . . . . . . Recycling Units . | . . . . . . Scanalyzers . | . . . . . . Garrison Access . | . . . . . . Data Cores Recovered . | . . . . . . Used . | . . . . . . Hacking Detections 3 | . 1 . 2 . . Full Trace Events . | . . . . . . Feedback Events . | . . . . . . Feedback Blocked . | . . . . . . Robot Schematics Acquired . | . . . . . . Robots Built . | . . . . . . Authchips . | . . . . . . Time . | . . . . . . Total Robot Build Rating . | . . . . . . Part Schematics Acquired . | . . . . . . Parts Built . | . . . . . . Authchips . | . . . . . . Time . | . . . . . . Total Part Build Rating . | . . . . . . Parts Repaired . | . . . . . . Time . | . . . . . . Parts Recycled . | . . . . . . Recycled Matter . | . . . . . . Retrieved Matter . | . . . . . . Retrieved Components . | . . . . . . Parts Scanalyzed . | . . . . . . Part Schematics Acquired . | . . . . . . Parts Damaged . | . . . . . . Bothacking | -11 -10 -10 -9 -9 -9 ------------ Run | Yrd Mat Min Mat Min Exi Used RIF Installer . | . . . . . . Robots Hacked . | . . . . . . Non-combat . | . . . . . . Combat . | . . . . . . Robot Hacks Applied . | . . . . . . Relay Couplers Released . | . . . . . . Fabnet Peak Effective % . | . . . . . . Robots Rewired . | . . . . . . Allies Hacked . | . . . . . . Hacks Repelled . | . . . . . . Allies | -11 -10 -10 -9 -9 -9 -------- Run | Yrd Mat Min Mat Min Exi Total Allies . | . . . . . . Largest Group . | . . . . . . Highest-Rated Group . | . . . . . . Highest-Rated Ally . | . . . . . . Total Orders . | . . . . . . Ally Attacks . | . . . . . . Total Damage . | . . . . . . Kills . | . . . . . . Allies Corrupted . | . . . . . . Allies Melted . | . . . . . . Intel | -11 -10 -10 -9 -9 -9 ------- Run | Yrd Mat Min Mat Min Exi Robot Analysis Total . | . . . . . . Derelict Logs Recovered 2 | . . . . 2 . Drone Launches . | . . . . . . Drone Recoveries . | . . . . . . Exploration | -11 -10 -10 -9 -9 -9 ------------- Run | Yrd Mat Min Mat Min Exi Turns Passed 2888 | 69 379 334 832 1095 179 Spaces Moved 1525 | 40 184 192 377 621 111 Core 4 | 4 . . . . . Treads 1521 | 36 184 192 377 621 111 Legs . | . . . . . . Wheels . | . . . . . . Hover . | . . . . . . Flight . | . . . . . . Fastest Speed 50 | 50 160 160 160 160 160 Average Speed 159 | 150 160 160 160 160 160 Slowest Speed 240 | 160 160 160 240 160 160 Overloaded Moves . | . . . . . . Propulsion Burnouts . | . . . . . . Robots Hopped . | . . . . . . Cave-ins Triggered . | . . . . . . Exploration Rate (%) 43 | 4 38 46 35 96 39 Regions Visited 5 Branch Regions 3 Pre-discovered Areas . | . . . . . . Known Exits Taken 2 | . 1 . 1 . . Unknown Exits Taken 3 | 1 . 1 . 1 . Scrap Searched 4 | . . 1 . 3 . Spaces Dug . | . . . . . . Terrain Destroyed 75 | . 40 25 9 1 . Melee . | . . . . . . Projectile 2 | . . . 1 1 . AOE 73 | . 40 25 8 . . Terrain Rammed . | . . . . . . Walls Destroyed . | . . . . . . Machines Disabled . | . . . . . . Actions | -11 -10 -10 -9 -9 -9 --------- Run | Yrd Mat Min Mat Min Exi Total 1749 | 46 219 203 499 670 112 Wait 40 | 1 2 . 20 17 . Move 1520 | 39 183 191 376 620 111 Hop . | . . . . . . Pick Up 2 | . . . 2 . . Fast Attach 23 | 6 1 . 15 1 . Attach 1 | . . . . . 1 Detach . | . . . . . . Swap 5 | . . . 4 1 . Drop 9 | . 1 . 7 1 . Fire 139 | . 30 11 74 24 . Melee . | . . . . . . Ram . | . . . . . . Kick . | . . . . . . Crush 10 | . 2 1 1 6 . Escape Stasis . | . . . . . . Rewire . | . . . . . . Trap . | . . . . . . Miscellaneous . | . . . . . . Route ------- -11/Scrapyard -10/Materials (discovered 2 exits: *Min x2) -10/Mines -9/Materials -9/Mines (discovered 3 exits: [*Mat x2] / *Exi) -9/Exiles History --------- Turn | Location | Event 26 | -11/Scrapyard | Discovered new exit (range 15) 70 | -11/Scrapyard | Entered Materials 70 | -10/Materials | Discovered new exit (range 14) 228 | -10/Materials | Discovered new exit (range 7) 316 | -10/Materials | Build established: Mutant 375 | -10/Materials | Identified exit to Mines 449 | -10/Materials | Entered Mines 514 | -10/Mines | Lost 3 parts (1p2w) 760 | -10/Mines | Discovered new exit (range 15) 783 | -10/Mines | Entered Materials 783 | -9/Materials | Evolved 2 slots: Utility x2 1014 | -9/Materials | Identified exit to Mines 1121 | -9/Materials | Lost 4 parts (1n1u2w) 1222 | -9/Materials | Core integrity fell below 50% 1615 | -9/Materials | Entered Mines 1695 | -9/Mines | Discovered new exit (range 10) 1760 | -9/Mines | Build established: Scavenger-Mutant 1929 | -9/Mines | Learned location of 1 exit from Materials 1929 | -9/Mines | Discovered new exit (range 6) 1970 | -9/Mines | Learned 2 Materials zone layouts 1993 | -9/Mines | Received a Rocket Launcher from a helpful Derelict 2700 | -9/Mines | Build established: Mutant 2702 | -9/Mines | Deemed a non-threat by the Exiles lab entrance 2703 | -9/Mines | Discovered new exit (range 5) 2710 | -9/Mines | Entered Exiles 2753 | -9/Exiles | Met 8R-AWN 2779 | -9/Exiles | Met EX-HEX 2825 | -9/Exiles | Met EX-BIN 2843 | -9/Exiles | Aligned with FarCom system 2844 | -9/Exiles | Given EX-Vault access code 2883 | -9/Exiles | Opened EX-Vault 2889 | -9/Exiles | Self-destructed Last Messages --------------- Modified TNC 0b10 Alert Chip Cloak of Protection Skeleton Box Trap Reconfigurator Supersonic Drone Bay Army-in-a-Box PSU Rigger Chronowheel AWS/Thermal Latent Energy Streamer Gui. Plasma Cannon Firepult YOLO Cannon AWS/Gauss XL Autogun Array AWS/Autocannon Field Lobotomy Kit Longsword +1 Deploy-a-Sentry Map ----- +----------------------------------------------------+ | | | | | | | | | | | | | | | | | | | | | | | | | | | | | | | | | | | | | | | | | | | | | ?????????????????????####?####???????????????????? | | ?????????????????????# # #???????????????????? | | ?????????????????????# X= #???????????????????? | | ?????????????????????# &@[ #???????????????????? | | ?????????????????????# & #???????????????????? | | ?????????????????????## ##???????????????????? | | ?????????????????????#X #????????????????????? | | ?????????????????????## #????????????????????? | | ??????????????????????# #????????????????????? | | ??????????????????????# #???#????????????????? | | ??????????????????????# #??""""??????????????? | | ??????????????????????# ## """?????????????? | | ??????????????????????# X""?????????????? | | ??????????????????????# ## """?????????????? | | ???????????????#####??# #??""""??????????????? | | ???????????????""""""?# #???#????????????????? | | ???????????????"""" ## #????????????????????? | | ??????????????#""X" #????????????????????? | | ??????????????#" #????????????????????? | | ??????????????#" ## #????????????????????? | | ??????????????#""""""?# #?#########??????????? | | ??????????????##"###??# #?#"""""""#??????????? | | ??????????????? ??????# #?#"""""""#??????????? | | ??????????????????????# #?#"""""""#??????????? | | ?????????????????????## ###"" """"#??????????? | | ?????????????????????#" """"#??????????? | | ?????????????????????#" """#??????????? | | ?????????????????????#" """#??????????? | +----------------------------------------------------+ Best States ------------- Heat Dissipation 38 Energy Generation 14 Energy Capacity 280 Matter Stores 300 Matter Capacity 300 Sight Range 16 Terrain Scan Density 10 Armor Coverage 150 Evasion (%) 40 Recoil Reduction 2 Offensive Hacking 10 Item Schematics ----------------- None Robot Schematics ------------------ None Fabricated ------------ Nothing Alien Tech Used ----------------- None Achievements -------------- None Challenges ------------ None Game ------ Seed CoreCloakingSpear Manual? 0 Play Time 00:13:23 Cumulative 69.2 hours Start 2024.08.09 @ 15:13:19 End 2024.08.09 @ 15:26:27 Sessions 1 Manual Loads 0 Difficulty Rogue Special Mode None Game No. 166 Rogue 91 Adventurer 75 Explorer 0 Win Type - Total 0 Types 0/0/0/0/0/0/0/0/0 Lore% 38 Gallery% 42 Achievement% 34 Wizard Run 0 Options --------- Layout 0 ASCII 0 Keyboard 0 Movement Mouse Keybinds 0 Fullscreen 1 Font 24/Smallcaps Map View 76x50 Zoom Use 0% Tactical HUD 0 Map Filters NONE Filters NONE Steam 1 RUN: 71d0143a-a2fc-4ac8-9449-37ab19c87db6